Cogmind - Beta 14 @@@ ROGUE MODE // 2025.03.21 @ 18:52:52 Player: Anting Result: Self-destructed Performance ------------- Evolutions (2) 1000 Regions Visited (8) 1600 Robots Destroyed (51) 255 Value Destroyed (1452) 1452 Prototype IDs (43) 860 Alien Tech Used (0) 0 Bonus (1531) 1531 TOTAL SCORE: 6698 Bonus ------- Follower Combat Kills 1414 Aligned with FarCom 300 Friendly Fire -183 Cogmind --------- Core Integrity 284/550 Matter 300/300 Energy 100/100 System Corruption 0% Temperature Cool (0) Movement Treading (320) Ox2 Location -8/Scraptown Parts ------- > --- POWER (1) -------- (None) > --- PROPULSION (2) --- Medium Treads > --- UTILITY (6) ------ Army-in-a-Box (0/30) > --- WEAPON (2) ------- Gauss Rifle > --- INVENTORY (5) ---- Light Treads Latent Energy Streamer Gauss Rifle Gauss Cannon CPS Tube (2) Peak State ------------ > --- POWER ------------ Light Angular Momentum Engine > --- PROPULSION ------- Light Treads Medium Treads > --- UTILITY ---------- Army-in-a-Box > --- WEAPON ----------- Gauss Rifle Gauss Rifle > --- INVENTORY -------- CPS Tube Deploy-a-Sentry Deploy-a-Sentry Deploy-a-Sentry [Rating: 74] Favorites ----------- Power Light Angular Momentum Engine Engine Light Angular Momentum Engine Power Core Light Nuclear Core Propulsion Light Treads Treads Light Treads Leg Aluminum Leg Utility Large Storage Unit Device Army-in-a-Box Storage Large Storage Unit Processor Improved Targeting Computer Protection Layered Light Armor Plating Weapon Gauss Rifle Energy Cannon Heavy Ion Cannon Ballistic Gun Gauss Rifle Ballistic Cannon Gauss Cannon Launcher Grenade Launcher Special Melee Weapon Datajack Build | -11 -10 -10 -10 -9 -8 -8 -8 -8 ------- Run | Yrd Mat Min Exi Min Mat Sto Rec Scr Slots Evolved 4 | . . . . . 4 . . . Power . | . . . . . . . . . Propulsion . | . . . . . . . . . Utility 4 | . . . . . 4 . . . Weapon . | . . . . . . . . . Parts Attached 60 | 7 . 9 7 9 9 8 2 9 Power 8 | 1 . 2 . 1 . 2 . 2 Engine 7 | 1 . 1 . 1 . 2 . 2 Core 1 | . . 1 . . . . . . Reactor . | . . . . . . . . . Propulsion 9 | 2 . 2 2 1 1 1 . . Treads 5 | . . . 2 1 1 1 . . Leg 4 | 2 . 2 . . . . . . Wheel . | . . . . . . . . . Hover . | . . . . . . . . . Flight . | . . . . . . . . . Utility 16 | 2 . . 2 1 5 1 2 3 Device 3 | 1 . . . . . . . 2 Storage 4 | 1 . . 2 . . . . 1 Processor 6 | . . . . . 5 . 1 . Hackware . | . . . . . . . . . Protection 3 | . . . . 1 . 1 1 . Artifact . | . . . . . . . . . Weapon 27 | 2 . 5 3 6 3 4 . 4 Energy Gun . | . . . . . . . . . Energy Cannon 1 | . . . . 1 . . . . Ballistic Gun 17 | 2 . 3 2 3 2 3 . 2 Ballistic Cannon 1 | . . . . 1 . . . . Launcher 6 | . . 2 . 1 1 1 . 1 Special Weapon . | . . . . . . . . . Impact Weapon . | . . . . . . . . . Slashing Weapon . | . . . . . . . . . Piercing Weapon . | . . . . . . . . . Special Melee Weapon 2 | . . . 1 . . . . 1 Unidentified Prototypes 3 | . . . . . . 3 . . Parts Lost 7 | . . 3 . . 1 . . 3 Power 1 | . . . . . . . . 1 Propulsion 2 | . . 1 . . . . . 1 Utility 2 | . . 1 . . 1 . . . Weapon 2 | . . 1 . . . . . 1 Highest Loss Streak 3 | . . 3 . . 1 . . 3 To Critical Strikes . | . . . . . . . . . Average Slot Usage (%) 79 | . 100 97 85 86 79 100 99 65 Engine 9 | . 14 3 14 14 9 9 9 8 Core 1 | . . 10 . . . . . . Treads 14 | . . . 5 28 18 18 18 17 Leg 6 | . 28 28 22 . . . . . Device 4 | . 14 12 . . . . . 6 Storage 7 | . 14 14 14 14 9 9 9 2 Processor 8 | . . . . . 16 30 26 8 Protection 5 | . . . . 1 9 14 17 5 Ballistic Gun 18 | . 28 27 19 25 7 18 18 16 Peak Build Rating 74 | 7 7 9 15 32 43 42 44 74 Average Rating 39 | 5 7 8 8 18 37 41 43 60 On Entrance 21 | . 7 7 7 15 32 42 42 44 Naked Turns . | . . . . . . . . . Heaviest Build 101 | 13 13 16 27 48 48 44 44 101 Greatest Support 48 | 20 20 20 40 48 48 48 48 48 Greatest Overweight (x) 2 | 2 . . 1 . . . . 2 Average Overweight (x) . | . . . . . . . . . Largest Inventory Capacity 15 | 8 8 8 15 15 15 15 15 15 Average Capacity 10 | 7 8 8 11 15 15 15 15 8 Most Carried 15 | 3 4 8 15 15 15 15 15 15 Average Carried 8 | 2 3 7 9 14 14 14 15 5 Final Capacity 15 | 8 8 8 15 15 15 15 15 5 Final Carried 15 | 3 4 8 15 15 15 15 15 5 Class Distribution -------------------- 99% | Mutant Dominant Class ---------------- Mutant | -10/Materials Mutant | -10/Mines Mutant | -10/Exiles Mutant | -9/Mines Mutant | -8/Materials Mutant | -8/Storage Mutant | -8/Recycling Mutant | -8/Scraptown Resources | -11 -10 -10 -10 -9 -8 -8 -8 -8 ----------- Run | Yrd Mat Min Exi Min Mat Sto Rec Scr Matter Collected 1806 | 336 6 385 60 13 348 349 138 171 Remotely . | . . . . . . . . . Salvage Created 1981 | 104 48 235 . 20 269 818 266 221 Parts 126 | 7 4 14 . 6 14 54 14 13 Haulers Intercepted 2 | . . . . . 1 1 . . Recyclers Shooed . | . . . . . . . . . Parts Field Recycled . | . . . . . . . . . Retrieved Matter . | . . . . . . . . . Parts Self-Destructed . | . . . . . . . . . Prevented . | . . . . . . . . . Kills | -11 -10 -10 -10 -9 -8 -8 -8 -8 ------- Run | Yrd Mat Min Exi Min Mat Sto Rec Scr Combat Hostiles Destroyed 38 | . . 12 . 3 5 12 3 3 Guns 20 | . . 5 . . . 12 3 . Cannons 2 | . . . . . 2 . . . AOE 16 | . . 7 . 3 3 . . 3 Classes Destroyed 18 | 2 2 4 . . 2 4 2 2 Worker 6 | . 1 . . . 2 3 . . Builder 2 | . . . . . . 1 1 . Tunneler 3 | 2 . . . . 1 . . . Hauler 2 | . . . . . 1 1 . . Recycler 2 | 1 . 1 . . . . . . Operator 2 | . 1 . . . . 1 . . Drone 1 | . . . . . . . . 1 Watcher 1 | . . . . . . 1 . . Swarmer 6 | . . 3 . 3 . . . . Grunt 11 | . . 3 . . 4 4 . . Brawler 1 | . . . . . . 1 . . Duelist 1 | . . . . . . . 1 . Sentry 7 | . . . . . . 7 . . Demolisher 1 | . . 1 . . . . . . Hunter 2 | . . . . . 1 . 1 . Programmer 1 | . . . . . . . 1 . Scrapper 3 | . . . . . . . . 3 Assembled 5 | . . 5 . . . . . . Best Kill Streak 8 | 3 1 5 . 3 5 8 2 3 Combat Bots Only 6 | . . 5 . 3 3 6 2 3 Max Kills in Single Turn 3 | 1 1 3 . 3 3 2 1 3 Gunslinging . | . . . . . . . . . Exploded 3 | . . 3 . 3 1 . . 3 Melee . | . . . . . . . . . Uniques/NPCs Destroyed 1 | . . . . . . . . 1 Triborg (-8/Scraptown) Combat | -11 -10 -10 -10 -9 -8 -8 -8 -8 -------- Run | Yrd Mat Min Exi Min Mat Sto Rec Scr Hostile Shots Fired 182 | . 10 39 . 3 19 34 28 49 Missed 55 | . 3 7 . . 7 15 9 14 Damage Taken 2282 | . 87 630 . 50 207 277 300 731 Core 447 | . 34 147 . . 18 43 74 131 Absorbed by Shields . | . . . . . . . . . Core Remaining (%) 63 | 100 . . . 27 . . . . Volleys Fired 115 | 11 9 22 . 1 12 37 14 9 Largest 2 | 2 2 2 . 1 2 2 2 2 Hottest 76 | 40 40 40 . 30 76 56 56 56 Shots Fired 213 | 22 18 35 . 1 21 74 28 14 Gun 195 | 22 18 32 . . 10 74 28 11 Cannon 8 | . . . . . 8 . . . Launcher 10 | . . 3 . 1 3 . . 3 Special . | . . . . . . . . . Kinetic 203 | 22 18 32 . . 18 74 28 11 Thermal . | . . . . . . . . . Explosive 10 | . . 3 . 1 3 . . 3 Electromagnetic . | . . . . . . . . . Robot Hit Streak 19 | 3 14 5 . . 7 16 19 4 Robot Miss Streak 3 | 3 1 3 . . 1 2 1 2 Penetration Max 1 | . . . . . . 1 . 1 Secondary Targets 2 | . . . . . . 2 . . Max Gunslinging Chain 1 | . . . . . . 1 . . Shots Hit Robots 154 | 11 16 23 4 . 14 54 22 10 Core Hits 109 | 4 4 29 . 3 24 28 9 8 Critical Kills 2 | . . . . . . 1 . 1 Critical Parts Destroyed 2 | . 1 1 . . . . . . Critical Strikes 5 | . 1 1 . . 1 1 . 1 Destroy 4 | . 1 1 . . . 1 . 1 Blast 1 | . . . . . 1 . . . Melee Attacks 6 | . . . 5 . . . . 1 Impact . | . . . . . . . . . Slashing . | . . . . . . . . . Piercing . | . . . . . . . . . Sneak Attacks 5 | . . . 4 . . . . 1 Combat Hostiles . | . . . . . . . . . Follow-up Attacks . | . . . . . . . . . Damage Inflicted 4340 | 145 203 741 . 126 971 1106 473 575 Guns 2454 | 145 203 266 . . 117 1093 437 193 Cannons 193 | . . . . . 193 . . . Explosions 1608 | . . 452 . 126 648 . . 382 Melee . | . . . . . . . . . Ramming 85 | . . 23 . . 13 13 36 . Kinetic 2647 | 145 203 266 . . 310 1093 437 193 Thermal . | . . . . . . . . . Explosive 1608 | . . 452 . 126 648 . . 382 Electromagnetic . | . . . . . . . . . Impact . | . . . . . . . . . Slashing . | . . . . . . . . . Piercing . | . . . . . . . . . Highest Corruption . | . . . . . . . . . Average Corruption . | . . . . . . . . . Corruption Purged . | . . . . . . . . . Corruption Blocked . | . . . . . . . . . Overload Shots . | . . . . . . . . . Overflow Damage 9 | . . . . . 9 . . . Projectiles . | . . . . . . . . . Explosions 9 | . . . . . 9 . . . Melee . | . . . . . . . . . Knockbacks 2 | . . . . . 2 . . . Impact 1 | . . . . . 1 . . . Kinetic 1 | . . . . . 1 . . . Secondary . | . . . . . . . . . Self-Inflicted Damage 74 | . . . . 30 . . . 44 Shots 2 | . . . . 1 . . . 1 Rammed 5 | . . . . . 1 1 3 . Targets Rammed 9 | . . 4 . . 1 1 3 . Kicked 4 | . . 4 . . . . . . Crushed . | . . . . . . . . . Highest Temperature 117 | . . 17 . . 117 87 60 24 Average Temperature 25 | . . 7 . . 38 26 24 11 Received Heat Transfer 682 | . 48 120 . . 126 99 . 289 Siege Activations . | . . . . . . . . . Robots Corrupted . | . . . . . . . . . Combat Hostiles . | . . . . . . . . . Parts Fried . | . . . . . . . . . Impact Corruptions . | . . . . . . . . . Robots Melted . | . . . . . . . . . Combat Hostiles . | . . . . . . . . . Parts Melted . | . . . . . . . . . Heat Transferred . | . . . . . . . . . Parts Sabotaged . | . . . . . . . . . Parts Stolen . | . . . . . . . . . Parts Stripped . | . . . . . . . . . Power Chain Reactions . | . . . . . . . . . Alert | -11 -10 -10 -10 -9 -8 -8 -8 -8 ------- Run | Yrd Mat Min Exi Min Mat Sto Rec Scr Peak Influence 305 | 15 74 140 . 91 248 305 239 . Initial 118 | . 9 34 . . . 104 118 . Average 81 | 5 28 57 . 52 61 125 197 . Maximum Alert Level 1 | . . . . . 1 1 1 . Low Security (%) 87 | 100 100 100 . 100 83 74 47 . Level 1 12 | . . . . . 16 25 52 . Level 2 . | . . . . . . . . . Level 3 . | . . . . . . . . . Level 4 . | . . . . . . . . . Level 5 . | . . . . . . . . . High Security . | . . . . . . . . . Max Security . | . . . . . . . . . Squads Dispatched 7 | . 1 . . 1 1 4 . . Investigation 1 | . . . . 1 . . . . Extermination . | . . . . . . . . . Reinforcement 3 | . 1 . . . 1 1 . . Assault . | . . . . . . . . . Garrison 3 | . . . . . . 3 . . Intercept . | . . . . . . . . . Searches Triggered . | . . . . . . . . . Construction Impeded . | . . . . . . . . . Haulers Reinforced . | . . . . . . . . . Active Scanning Responses . | . . . . . . . . . Cargo Convoy Interrupts . | . . . . . . . . . Stealth | -11 -10 -10 -10 -9 -8 -8 -8 -8 --------- Run | Yrd Mat Min Exi Min Mat Sto Rec Scr Distress Signals 3 | . 1 . . . 1 1 . . Communications Jammed . | . . . . . . . . . Distress Signals . | . . . . . . . . . Times Spotted 92 | . 6 28 . 3 14 18 4 19 Peak Tracking Total 19 | . 5 19 . 3 5 4 2 8 Tactical Retreats 2 | . 1 1 . . . . . . Traps | -11 -10 -10 -10 -9 -8 -8 -8 -8 ------- Run | Yrd Mat Min Exi Min Mat Sto Rec Scr Traps Triggered . | . . . . . . . . . Indirectly . | . . . . . . . . . Trap Hack Attempts . | . . . . . . . . . Triggered . | . . . . . . . . . Disarmed . | . . . . . . . . . Reprogrammed . | . . . . . . . . . Reused . | . . . . . . . . . Traps Extracted . | . . . . . . . . . Installed . | . . . . . . . . . Triggered . | . . . . . . . . . Machines | -11 -10 -10 -10 -9 -8 -8 -8 -8 ---------- Run | Yrd Mat Min Exi Min Mat Sto Rec Scr Machines Disabled 4 | . . . . . . 2 . 2 Max in Single Turn 1 | . . . . . . 1 . . Machines Repaired . | . . . . . . . . . Machines Dismantled . | . . . . . . . . . Machines Sabotaged . | . . . . . . . . . Overloaded Fab Kills . | . . . . . . . . . Hacking | -11 -10 -10 -10 -9 -8 -8 -8 -8 --------- Run | Yrd Mat Min Exi Min Mat Sto Rec Scr Machines Accessed 15 | . 2 . 2 2 2 7 . . Terminals 10 | . 2 . . . 2 6 . . Fabricators . | . . . . . . . . . Repair Stations . | . . . . . . . . . Recycling Units . | . . . . . . . . . Scanalyzers . | . . . . . . . . . Garrison Access 1 | . . . . . . 1 . . Total Hacks 27 | . 2 . 2 2 3 18 . . Successful 16 | . 2 . 2 2 2 8 . . Failed 11 | . . . . . 1 10 . . Catastrophic 2 | . . . . . . 2 . . Database Lockouts . | . . . . . . . . . Manual 16 | . 4 . 1 . 2 9 . . Terminals 21 | . 2 . . . 3 16 . . Fabricators . | . . . . . . . . . Repair Stations . | . . . . . . . . . Recycling Units . | . . . . . . . . . Scanalyzers . | . . . . . . . . . Garrison Access 2 | . . . . . . 2 . . Terminal Hacks 13 | . 1 . 2 2 1 7 . . Record 1 | . . . 1 . . . . . Robot Analysis 1 | . 1 . . . . . . . Prototype ID Bank 1 | . . . . . . 1 . . Open Door 5 | . . . . 2 . 3 . . Branch Access Points 2 | . . . . . 1 1 . . Terminal Index 1 | . . . . . . 1 . . Unreport Threat 1 | . . . . . . 1 . . Derelict Proto ID Bank 1 | . . . 1 . . . . . Fabricator Hacks . | . . . . . . . . . Repair Station Hacks . | . . . . . . . . . Recycling Unit Hacks . | . . . . . . . . . Scanalyzer . | . . . . . . . . . Garrison Access Hacks . | . . . . . . . . . Unauthorized Hacks 3 | . 1 . . . 1 1 . . Terminals 3 | . 1 . . . 1 1 . . Botnet 3 | . 1 . . . 1 1 . . Fabricators . | . . . . . . . . . Repair Stations . | . . . . . . . . . Recycling Units . | . . . . . . . . . Scanalyzers . | . . . . . . . . . Garrison Access . | . . . . . . . . . Data Cores Recovered . | . . . . . . . . . Used . | . . . . . . . . . Hacking Detections 10 | . 2 . . . 2 6 . . Full Trace Events 1 | . . . . . . 1 . . Feedback Events . | . . . . . . . . . Feedback Blocked . | . . . . . . . . . Robot Schematics Acquired . | . . . . . . . . . Robots Built . | . . . . . . . . . Authchips . | . . . . . . . . . Time . | . . . . . . . . . Total Robot Build Rating . | . . . . . . . . . Part Schematics Acquired . | . . . . . . . . . Parts Built . | . . . . . . . . . Authchips . | . . . . . . . . . Time . | . . . . . . . . . Total Part Build Rating . | . . . . . . . . . Parts Repaired . | . . . . . . . . . Time . | . . . . . . . . . Parts Recycled . | . . . . . . . . . Recycled Matter . | . . . . . . . . . Retrieved Matter . | . . . . . . . . . Retrieved Components . | . . . . . . . . . Parts Scanalyzed . | . . . . . . . . . Part Schematics Acquired . | . . . . . . . . . Parts Damaged . | . . . . . . . . . Bothacking | -11 -10 -10 -10 -9 -8 -8 -8 -8 ------------ Run | Yrd Mat Min Exi Min Mat Sto Rec Scr Used RIF Installer . | . . . . . . . . . Robots Hacked 5 | . . . 4 . . . . 1 Non-combat 3 | . . . 3 . . . . . Combat 2 | . . . 1 . . . . 1 Robot Hacks Applied 5 | . . . 4 . . . . 1 parse_system 5 | . . . 4 . . . . 1 Relay Couplers Released . | . . . . . . . . . Fabnet Peak Effective % . | . . . . . . . . . Robots Rewired 3 | . . . . . . . 3 . Allies Hacked . | . . . . . . . . . Hacks Repelled . | . . . . . . . . . Allies | -11 -10 -10 -10 -9 -8 -8 -8 -8 -------- Run | Yrd Mat Min Exi Min Mat Sto Rec Scr Total Allies 7 | . . . . 4 . . 3 . Largest Group 4 | . . . . 4 4 1 3 3 Highest-Rated Group 71 | . . . . 71 71 16 52 49 Highest-Rated Ally 31 | . . . . 31 31 16 18 18 Total Orders 45 | . . . . 4 . . . 41 STAY 36 | . . . . 2 . . . 34 FOLLOW 5 | . . . . 2 . . . 3 EXPLORE 1 | . . . . . . . . 1 RETURN 3 | . . . . . . . . 3 Ally Attacks 371 | . . . . . 32 2 10 327 Total Damage 6486 | . . . . . 393 33 198 5862 Kills 62 | . . . . . 5 . 2 55 Allies Corrupted . | . . . . . . . . . Allies Melted . | . . . . . . . . . Turrets Deployed 3 | . . . . . . . . 3 Intel | -11 -10 -10 -10 -9 -8 -8 -8 -8 ------- Run | Yrd Mat Min Exi Min Mat Sto Rec Scr Robot Analysis Total 1 | . 1 . . . . . . . Derelict Logs Recovered 2 | . . 1 . 1 . . . . Drone Launches 116 | . . . . . . . . 116 Drone Recoveries 86 | . . . . . . . . 86 Exploration | -11 -10 -10 -10 -9 -8 -8 -8 -8 ------------- Run | Yrd Mat Min Exi Min Mat Sto Rec Scr Turns Passed 8207 | 117 198 947 813 689 605 692 370 3776 Spaces Moved 3381 | 59 90 407 550 261 267 235 162 1350 Core 13 | 13 . . . . . . . . Treads 2379 | . . . 104 261 267 235 162 1350 Legs 989 | 46 90 407 446 . . . . . Wheels . | . . . . . . . . . Hover . | . . . . . . . . . Flight . | . . . . . . . . . Fastest Speed 50 | 50 120 120 120 160 160 160 160 160 Average Speed 179 | 118 120 120 142 160 160 160 160 231 Slowest Speed 320 | 150 120 120 190 160 160 160 160 320 Overloaded Moves . | . . . . . . . . . Propulsion Burnouts . | . . . . . . . . . Robots Hopped 4 | . . . . 1 . . . 3 Cave-ins Triggered . | . . . . . . . . . Exploration Rate (%) 43 | 5 24 56 78 60 26 42 45 58 Regions Visited 8 Branch Regions 6 Pre-discovered Areas 2 | . . 1 1 . . . . . Known Exits Taken 2 | . . . . . 1 1 . . Unknown Exits Taken 6 | 1 1 1 1 1 . . 1 . Scrap Searched 5 | . . 2 . . . . . 3 Spaces Dug 2 | . . . . . . . . 2 Terrain Destroyed 62 | . . 16 . 6 18 1 . 21 Melee . | . . . . . . . . . Projectile 2 | . . . . . 1 1 . . AOE 60 | . . 16 . 6 17 . . 21 Terrain Rammed . | . . . . . . . . . Walls Destroyed . | . . . . . . . . . Machines Disabled . | . . . . . . . . . Actions | -11 -10 -10 -10 -9 -8 -8 -8 -8 --------- Run | Yrd Mat Min Exi Min Mat Sto Rec Scr Total 5338 | 80 162 828 575 531 422 478 243 2019 Wait 1563 | 1 63 378 1 253 124 188 25 530 Move 3366 | 58 89 406 549 258 266 234 161 1345 Hop 3 | . . . . 1 . . . 2 Pick Up 77 | 3 1 6 7 2 4 1 . 53 Fast Attach 34 | 7 . 1 1 4 6 7 2 6 Attach 4 | . . 2 2 . . . . . Detach . | . . . . . . . . . Swap 22 | . . 6 4 5 3 1 . 3 Drop 103 | . . 3 6 7 6 9 2 70 Fire 115 | 11 9 22 . 1 12 37 14 9 Melee 6 | . . . 5 . . . . 1 Ram . | . . . . . . . . . Kick 4 | . . 4 . . . . . . Crush 5 | . . . . . 1 1 3 . Escape Stasis . | . . . . . . . . . Rewire 36 | . . . . . . . 36 . Trap . | . . . . . . . . . Miscellaneous . | . . . . . . . . . Route ------- -11/Scrapyard -10/Materials -10/Mines (discovered 2 exits: [*Mat] / *Exi) -10/Exiles -9/Mines -8/Materials -8/Storage -8/Recycling -8/Scraptown (discovered 1 exit: [*Fac]) History --------- Turn | Location | Event 16 | -11/Scrapyard | Discovered new exit (range 15) 118 | -11/Scrapyard | Entered Materials 304 | -10/Materials | Discovered new exit (range 9) 309 | -10/Materials | Build established: Mutant 316 | -10/Materials | Entered Mines 537 | -10/Mines | Assembled infested the area 1018 | -10/Mines | Learned location of Zion (-6) 1030 | -10/Mines | Discovered new exit (range 5) 1149 | -10/Mines | Core integrity fell below 50% 1182 | -10/Mines | Lost 3 parts (1n1u1w) 1236 | -10/Mines | A weapon hastily lodged in a ceiling crevice suddenly fell to the ground 1257 | -10/Mines | Deemed a non-threat by the Exiles lab entrance 1258 | -10/Mines | Discovered new exit (range 5) 1263 | -10/Mines | Entered Exiles 1292 | -10/Exiles | Met 8R-AWN 1314 | -10/Exiles | Met EX-HEX 1347 | -10/Exiles | Met EX-BIN 1361 | -10/Exiles | Aligned with FarCom system 1362 | -10/Exiles | Given EX-Vault access code 1391 | -10/Exiles | Opened EX-Vault 1418 | -10/Exiles | Warned to stay clear of 0b10 Research branches 1452 | -10/Exiles | Met EX-DEC 1604 | -10/Exiles | Visited The Gauntlet 1899 | -10/Exiles | Found Army-in-a-Box 1907 | -10/Exiles | Found Deploy-a-Sentry 1911 | -10/Exiles | Found Deploy-a-Sentry 1914 | -10/Exiles | Found Deploy-a-Sentry 1926 | -10/Exiles | Found Latent Energy Streamer 2059 | -10/Exiles | Discovered new exit (range 14) 2076 | -10/Exiles | Stole three prototypes: Army-in-a-Box, Latent Energy Streamer, Deploy-a-Sentry 2076 | -10/Exiles | Entered Mines 2142 | -9/Mines | Assisted by bots powering up and referring to "LRC-V3" 2171 | -9/Mines | Met a Derelict bent on vengeance 2314 | -9/Mines | Met a Derelict shopkeep closing up shop 2438 | -9/Mines | Learned Materials security intel 2458 | -9/Mines | Met a Derelict who couldn't figure out how to use a Trap Extractor 2746 | -9/Mines | Discovered new exit (range 5) 2754 | -9/Mines | Received a Mining Laser from a helpful Derelict 2765 | -9/Mines | Entered Materials 2765 | -8/Materials | Accompanied by 4 allies 2765 | -8/Materials | Evolved 4 slots: Utility x4 2969 | -8/Materials | Discovered new exit (range 5) 3272 | -8/Materials | Identified exit to Storage 3370 | -8/Materials | Entered Storage 3370 | -8/Storage | Accompanied by 1 ally 3565 | -8/Storage | Identified exit to Recycling 4056 | -8/Storage | Used back door to open Recycling access 4062 | -8/Storage | Entered Recycling 4392 | -8/Recycling | Scanned before Scraplab entrance 4414 | -8/Recycling | Entered Scraplab 4427 | -8/Recycling | Discovered new exit (range 3) 4432 | -8/Recycling | Entered Scraptown 4432 | -8/Scraptown | Accompanied by 3 allies 4490 | -8/Scraptown | Heard Great Nut preacher, LISTEN AND RECITE! 5097 | -8/Scraptown | Discovered new exit (range 11) 5280 | -8/Scraptown | Visited Symbiants 5311 | -8/Scraptown | Visited Artisan Demo Area 5394 | -8/Scraptown | Visited SPCMW 5408 | -8/Scraptown | Visited Spacefarers 5463 | -8/Scraptown | Visited Comm Corps 5676 | -8/Scraptown | DAS Turret deployed 5681 | -8/Scraptown | DAS Turret deployed 5685 | -8/Scraptown | DAS Turret deployed 5783 | -8/Scraptown | Visited Awakened 7782 | -8/Scraptown | Attacked by Scraptown defenders 7786 | -8/Scraptown | Allies destroyed Triborg 7816 | -8/Scraptown | Lost 5 allies 7917 | -8/Scraptown | Lost 3 parts (1p1n1w) 8208 | -8/Scraptown | Self-destructed Last Messages --------------- 08181_ H2-QHZ(j) suffers critical hit (Burn). 08184_ KS-BM4(j) destroyed. 08184_ Army Drone destroyed. 08187_ Machine disabled. 08192_ H2-QHZ(j) destroyed. 08192_ Bolt penetrates Wall. 08193_ 1L-Z3I(z) Mak. Power Source blasted off. 08195_ Bolt penetrates Machine. 08195_ Bolt penetrates Army Drone. 08195_ 1L-Z3I(z) destroyed. 08198_ Bolt penetrates Army Drone. 08199_ QU-PM2(j) heat spikes uncontrollably. 08199_ QU-PM2(j) destroyed. 08199_ Machine disabled. 08200_ 52-L5U(h) destroyed. 08202_ Destroyed Ripteeth. 08206_ LK-RAX(r) destroyed. 08207_ Destroyed Ripteeth. 08207_ Army Drone destroyed. 08207_ QY-JDE(r) destroyed. Map ----- +----------------------------------------------------+ | | | | | | | | | | | | | | | | | | | | | ?????????????????????????????????????????????????? | | ?##???????????????????#######????????????????????? | | ?"""??????????????????? #????????????????????? | | "???????????????????< ??###############???# | | "" "#????#######???????? #?#"""""""""#"""""??"" | | "" "#???#"""""""#???????#% #?#" "#" ?? " | | "" "#???#"" ""#???????#=% #?#" """ " | | "#???#"" ""#???????#%!!#?#" "#" "" " | | """###?#""" ""#???????#*[ ###" """ "#" " " | | #?#"" ""#??????## ;##" "#" " | | ###""" """######## ##"""""" ""#"" """""" | | | | = | | g !%! n n | | #####; ########### ##########"" """"#### | | ######n######????##@n ##????????#" %"#??? | | #"""""!"""""#####?#n=n#########?#" !""#??? | | #" "%= n #?#%n=""""""""#?#" """#??? | | """ ""#" " & n" "### ###gn=" ""#?#" """#??? | | """ "#" "!" "#"" """[= "#?#"""""""#??? | | """ "#"""""n"""""#" """%! " ""#?#########??? | | "" "######n######" "!*[""""""""#????????????? | | ? "#""""!*"""""#" *%!##"""####????????????? | | ?"" ""#" !" "#" "" " #?########?????####### | | ?## ###" " " "#" " #?????# """"#??#"""""" | | ??# "#""""" #?????# | | #??#" | | ??#####""" " """""####### n #?????# """"#??#" | | #?????######%######??#### #?????# || #??#"/!""" | | ############=#########;;; #?????# """"#??#"[!""" | | c =%%!!n[%=n n% n #?????# | #??#" |""" | | !=[*%%=!!%! n %=%!%#?????# """"#??#"! [ | | ##################;###;!%! #?????# | #??#" * | | #????????????????###?##[%=%[###??## ! ##?#"!!] | | #######???????##########; ! ;;#### ## =# ### ### | | """"""#??????""""""" # /% =%!*!!%!* ! !% %| | | "#??????""""""" # = =![[*%= !==%! = * | | !! "#?????#"" " [=%*! [ = | | |! "#?????#"" # =*![ != | | "#?????#""" # !%* % ! | | = "#?????#"X # ###### [ # ### | +----------------------------------------------------+ Best States ------------- Heat Dissipation 31 Energy Generation 18 Energy Capacity 300 Matter Stores 300 Matter Capacity 300 Sight Range 16 Terrain Scan Density 10 Armor Coverage 300 Resistance: EM 15 Evasion (%) 55 Targeting Accuracy 18 Core Analysis 6 Recoil Reduction 2 Salvage Targeting 1 Item Schematics ----------------- None Robot Schematics ------------------ None Fabricated ------------ Nothing Alien Tech Used ----------------- None Achievements -------------- None Challenges ------------ None Game ------ Seed FieldInsulatedRipteeth Manual? 0 Play Time 00:45:19 Cumulative 148.2 hours Start 2025.03.21 @ 18:06:56 End 2025.03.21 @ 18:52:52 Sessions 1 Manual Loads 0 Difficulty Rogue Special Mode None Game No. 105 Rogue 105 Adventurer 0 Explorer 0 Win Type - Total 7 Types 5/0/1/1/0/0/0/0/0 Lore% 70 Gallery% 66 Achievement% 62 Wizard Run 0 Options --------- Layout 1 ASCII 0 Keyboard 0 Movement Mouse Keybinds 0 Fullscreen 2 Font 32/SmallcapsGlow Map View 50x35 Zoom Use 0% Tactical HUD 1 Map Filters NONE Filters NONE Steam 1 RUN: f53649b1-8f2f-427d-b206-c9c081d3bf7d